fUSD/lending_fUSD_20240109
["ID","MTS","AMOUNT","RATE_DAILY","PERIOD"]
[310904932,1704814269887,-500.0,0.00041095,30]
[310904933,1704814269896,-500.0,0.00041095,30]
[310904934,1704814269906,-500.0,0.00041095,30]
[310904935,1704814269915,-500.0,0.00041095,30]
[310904936,1704814269926,-500.0,0.00041095,30]
[310904937,1704814269936,-500.0,0.00041095,30]
[310904938,1704814269945,-500.0,0.00041095,30]
[310904939,1704814269955,-500.0,0.00041095,30]
[310904940,1704814269964,-500.0,0.00041095,30]
[310904941,1704814269973,-500.0,0.00041095,30]
[310904942,1704814269983,-500.0,0.00041095,30]
[310904943,1704814269992,-500.0,0.00041095,30]
[310904944,1704814270002,-500.0,0.00041095,30]
[310904945,1704814270011,-3033.25,0.00041095,30]
[310904946,1704814270021,-500.0,0.00041095,30]
[310904947,1704814270030,-500.0,0.00041095,30]
[310904948,1704814270040,-558.84588338,0.00041095,30]
[310904949,1704814270050,-500.0,0.00041095,30]
[310904950,1704814270059,-500.0,0.00041095,30]
[310904951,1704814270068,-500.0,0.00041095,30]
[310904952,1704814270077,-500.0,0.00041095,30]
[310904953,1704814270086,-423.59,0.00041095,30]
[310904954,1704814270096,-500.0,0.00041095,30]
[310904955,1704814270105,-500.0,0.00041095,30]
[310904956,1704814270114,-500.0,0.00041095,30]
[310904957,1704814270124,-500.0,0.00041095,30]
[310904958,1704814270134,-500.0,0.00041095,30]
[310904959,1704814270143,-503.01998714,0.00041095,30]
[310904960,1704814270152,-952.63,0.00041095,30]
[310904961,1704814270162,-500.0,0.00041095,30]
[310904962,1704814270172,-1721.02,0.00041095,30]
[310904963,1704814270181,-836.3,0.00041095,7]
[310904964,1704814270191,-7028.61,0.00041095,30]
[310904965,1704814270201,-500.0,0.00041095,30]
[310904966,1704814270210,-5593.4,0.00041095,30]
[310904967,1704814270221,-2579.3,0.00041095,30]
[310904968,1704814270231,-500.0,0.00041095,30]
[310904969,1704814270241,-831.97,0.00041095,30]
[310904970,1704814270252,-462.43462607,0.00041095,30]
[310904971,1704814270262,-500.0,0.00041095,30]
[310904972,1704814270271,-500.0,0.00041095,30]
[310904973,1704814270281,-536.51089173,0.00041095,30]
[310904974,1704814270294,-501.2159122,0.00041095,30]
[310904975,1704814270303,-521.34956123,0.00041095,30]
[310904976,1704814270313,-30439.38,0.00041095,30]
[310904977,1704814270323,-500.0,0.00041095,30]
[310904978,1704814270332,-500.0,0.00041095,30]
[310904979,1704814270342,-3381.6,0.00041095,30]
[310904980,1704814270352,-500.0,0.00041095,30]
[310904981,1704814270362,-2158.92,0.00041095,30]
[310904982,1704814270371,-502.54997427,0.00041095,30]
[310904983,1704814270381,-500.0,0.00041095,30]
[310904984,1704814270390,-3472.05,0.00041095,30]
[310904985,1704814270400,-3977.49,0.00041095,30]
[310904986,1704814270410,-505.50835007,0.00041095,30]
[310904987,1704814270420,-500.0,0.00041095,30]
[310904988,1704814270429,-3410.32,0.00041095,30]
[310904989,1704814270439,-3128.49,0.00041095,30]
[310904990,1704814270448,-500.0,0.00041095,30]
[310904991,1704814270458,-500.0,0.00041095,30]
[310904992,1704814270468,-500.0,0.00041095,30]
[310904993,1704814270477,-10635.21,0.00041095,30]
[310904994,1704814270487,-500.0,0.00041095,30]
[310904995,1704814270496,-500.0,0.00041095,30]
[310904996,1704814270506,-663.76,0.00041095,30]
[310904997,1704814270515,-507.20987756,0.00041095,30]
[310904998,1704814270524,-500.0,0.00041095,30]
[310904999,1704814270535,-500.0,0.00041095,30]
[310905000,1704814270544,-500.0,0.00041095,30]
[310905001,1704814270553,-24039.48,0.00041095,30]
[310905002,1704814270563,-500.0,0.00041095,30]
[310905003,1704814270573,-500.0,0.00041095,30]
[310905004,1704814270583,-504.08297912,0.00041095,30]
[310905005,1704814270593,-500.0,0.00041095,30]
[310905006,1704814270602,-2042.98,0.00041095,30]
[310905007,1704814270611,-3985.89,0.00041095,30]
[310905008,1704814270621,-963.6,0.00041095,30]
[310905009,1704814270630,-666.14,0.00041095,30]
[310905010,1704814270639,-500.0,0.00041095,2]
[310905011,1704814270648,-8775.01,0.00041095,30]
[310905012,1704814270657,-514.74592455,0.00041095,30]
[310905013,1704814270666,-556.97,0.00041095,30]
[310905014,1704814270676,-455.43293665,0.00041095,30]
[310905015,1704814270685,-2400.49,0.00041095,30]
[310905016,1704814270694,-1309.81,0.00041095,30]
[310905017,1704814270704,-500.0,0.00041095,30]
[310905018,1704814270713,-566.11,0.00041095,30]
[310905019,1704814270723,-2978.02,0.00041095,30]
[310905020,1704814270733,-500.0,0.00041095,30]
[310905021,1704814270743,-12849.89,0.00041095,30]
[310905022,1704814270753,-4562.41,0.00041095,30]
[310905023,1704814270764,-500.0,0.00041095,30]
[310905024,1704814270774,-4825.39,0.00041095,30]
[310905025,1704814270785,-500.0,0.00041095,30]
[310905026,1704814270795,-500.0,0.00041095,30]
[310905027,1704814270805,-2107.23,0.00041095,30]
[310905028,1704814270815,-1467.66,0.00041095,30]
[310905029,1704814270825,-1188.47,0.00041095,30]
[310905030,1704814270835,-500.0,0.00041095,30]
[310905031,1704814270845,-500.0,0.00041095,30]
[310905032,1704814270854,-11369.64,0.00041095,30]
[310905033,1704814270863,-500.0,0.00041095,7]
[310905034,1704814270872,-504.59884422,0.00041095,30]
[310905035,1704814270882,-2592.28,0.00041095,30]
[310905036,1704814270892,-500.0,0.00041095,30]
[310905037,1704814270902,-564.43,0.00041095,30]
[310905038,1704814270911,-1243.26,0.00041095,30]
[310905039,1704814270921,-564.43,0.00041095,30]
[310905040,1704814270930,-564.43,0.00041095,30]
[310905041,1704814270939,-564.43,0.00041095,30]
[310905042,1704814270948,-564.43,0.00041095,30]
[310905043,1704814270958,-564.43,0.00041095,30]
[310905044,1704814270967,-564.43,0.00041095,30]
[310905045,1704814270975,-500.0,0.00041095,30]
[310905046,1704814270985,-564.43,0.00041095,30]
[310905047,1704814270994,-564.43,0.00041095,30]
[310905048,1704814271004,-500.0,0.00041095,30]
[310905049,1704814271013,-564.43,0.00041095,30]
[310905050,1704814271022,-566.95,0.00041095,30]
[310905051,1704814271031,-3734.08,0.00041095,30]
[310905052,1704814271040,-564.43,0.00041095,30]
[310905053,1704814271050,-564.43,0.00041095,30]
[310905054,1704814271059,-500.0,0.00041095,30]
[310905055,1704814271069,-520.31,0.00041095,30]
[310905056,1704814271079,-564.43,0.00041095,30]
[310905057,1704814271088,-13217.82,0.00041095,30]
[310905058,1704814271097,-564.43,0.00041095,30]
[310905059,1704814271107,-564.43,0.00041095,30]
[310905060,1704814271116,-500.0,0.00041095,30]
[310905061,1704814271126,-564.43,0.00041095,30]
[310905062,1704814271135,-564.43,0.00041095,30]
[310905063,1704814271144,-1308.82,0.00041095,30]
[310905064,1704814271153,-866.47,0.00041095,30]
[310905065,1704814271163,-564.43,0.00041095,30]
[310905066,1704814271173,-500.0,0.00041095,30]
[310905067,1704814271182,-564.43,0.00041095,30]
[310905068,1704814271192,-3181.95,0.00041095,30]
[310905069,1704814271201,-564.43,0.00041095,30]
[310905070,1704814271211,-564.43,0.00041095,30]
[310905071,1704814271220,-564.43,0.00041095,30]
[310905072,1704814271230,-564.43,0.00041095,30]
[310905073,1704814271239,-500.0,0.00041095,30]
[310905074,1704814271248,-564.57569086,0.00041095,30]
[310905075,1704814271258,-1766.64,0.00041095,30]
[310905076,1704814271269,-3615.8,0.00041095,30]
[310905077,1704814271279,-500.0,0.00041095,30]
[310905078,1704814271290,-500.0,0.00041095,30]
[310905079,1704814271299,-500.0,0.00041095,30]
[310905080,1704814271309,-5871.49015115,0.00041095,10]
[310905081,1704814271318,-799.0,0.00041095,30]
[310905082,1704814271328,-500.0,0.00041095,30]
[310905083,1704814271338,-500.0,0.00041095,30]
[310905084,1704814271347,-500.0,0.00041095,30]
[310905085,1704814271356,-500.0,0.00041095,30]
[310905086,1704814271366,-500.0,0.00041095,30]
[310905087,1704814271376,-53505.47,0.00041095,30]
[310905088,1704814271386,-1413.08,0.00041095,30]
[310905089,1704814271395,-501.82974884,0.00041095,30]
[310905090,1704814271405,-11287.22,0.00041095,30]
[310905091,1704814271414,-3747.83,0.00041095,30]
[310905092,1704814271424,-1155.76,0.00041095,30]
[310905093,1704814271433,-514.62329331,0.00041095,30]
[310905094,1704814271442,-1079.77,0.00041095,30]
[310905095,1704814271451,-1909.74,0.00041095,30]
[310905096,1704814271460,-3376.04,0.00041095,30]
[310905097,1704814271469,-500.0,0.00041095,30]
[310905098,1704814271478,-500.0,0.00041095,30]
[310905099,1704814271488,-500.0,0.00041095,30]
[310905100,1704814271497,-500.0,0.00041095,30]
[310905101,1704814271506,-1333.09,0.00041095,30]
[310905102,1704814271515,-500.0,0.00041095,30]
[310905103,1704814271524,-500.0,0.00041095,30]
[310905104,1704814271534,-9749.45,0.00041095,30]
[310905105,1704814271544,-500.0,0.00041095,30]
[310905106,1704814271553,-866.78,0.00041095,30]
[310905107,1704814271562,-539.77,0.00041095,30]
[310905108,1704814271572,-2218.8,0.00041095,30]
[310905109,1704814271581,-1480.74,0.00041095,30]
[310905110,1704814271591,-7804.99,0.00041095,30]
[310905111,1704814271599,-1670.61,0.00041095,30]
[310905112,1704814271608,-1352.73,0.00041095,30]
[310905113,1704814271618,-4741.82,0.00041095,30]
[310905114,1704814271627,-503.12115075,0.00041095,3]
[310905115,1704814271637,-1839.15,0.00041095,30]
[310905116,1704814271648,-500.0,0.00041095,30]
[310905117,1704814271657,-500.0,0.00041095,30]
[310905118,1704814271667,-744.76,0.00041095,30]
[310905119,1704814271677,-1070.69,0.00041095,30]
[310905120,1704814271687,-1274.54,0.00041095,30]
[310905121,1704814271696,-500.0,0.00041095,30]
[310905122,1704814271706,-2037.9,0.00041095,30]
[310905123,1704814271715,-500.0,0.00041095,30]
[310905124,1704814271725,-6743.41,0.00041095,30]
[310905125,1704814271734,-6850.2,0.00041095,30]
[310905126,1704814271744,-1978.49,0.00041095,30]
[310905127,1704814271754,-621.39,0.00041095,30]
[310905128,1704814271763,-500.0,0.00041095,30]
[310905129,1704814271772,-500.0,0.00041095,30]
[310905130,1704814271782,-3055.23,0.00041095,30]
[310905131,1704814271795,-2655.54,0.00041095,30]
[310905132,1704814271805,-764.5,0.00041095,30]
[310905133,1704814271814,-8868.04,0.00041095,30]
[310905134,1704814271823,-500.0,0.00041095,30]
[310905135,1704814271834,-500.0,0.00041095,30]
[310905136,1704814271843,-770.69,0.00041095,30]
[310905137,1704814271852,-500.0,0.00041095,30]
[310905138,1704814271862,-500.0,0.00041095,30]
[310905139,1704814271872,-519.39410238,0.00041095,30]
[310905140,1704814271882,-1000.0,0.00041095,2]
[310905141,1704814271892,-4116.15,0.00041095,30]
[310905142,1704814271901,-6036.32,0.00041095,30]
[310905143,1704814271910,-1289.28,0.00041095,30]
[310905144,1704814271919,-5775.13,0.00041095,30]
[310905145,1704814271929,-3806.3,0.00041095,30]
[310905146,1704814271938,-500.0,0.00041095,30]
[310905147,1704814271947,-500.0,0.00041095,30]
[310905148,1704814271956,-845.03,0.00041095,30]
[310905149,1704814271966,-6309.52,0.00041095,30]
[310905150,1704814271977,-501.7785417,0.00041095,30]
[310905151,1704814271985,-5575.14,0.00041095,30]
[310905152,1704814271994,-1090.32,0.00041095,30]
[310905153,1704814272004,-3727.78,0.00041095,30]
[310905154,1704814272013,-231.69450754,0.00041095,5]
[310905155,1704814272023,-500.0,0.00041095,30]
[310905156,1704814272032,-500.0,0.00041095,30]
[310905157,1704814272043,-500.0,0.00041095,30]
[310905158,1704814272051,-500.0,0.00041095,30]
[310905159,1704814272061,-500.0,0.00041095,30]
[310905160,1704814272070,-500.0,0.00041095,30]
[310905161,1704814272079,-504.80329036,0.00041095,30]
[310905162,1704814272087,-1000.0,0.00041095,10]
[310905163,1704814272097,-500.06566289,0.00041095,14]
[310905164,1704814272106,-901.26,0.00041095,30]
[310905165,1704814272115,-10643.6,0.00041095,30]
[310905166,1704814272125,-500.0,0.00041095,30]
[310905167,1704814272135,-500.0,0.00041095,30]
[310905168,1704814272145,-529.51,0.00041095,30]
[310905169,1704814272154,-4214.2,0.00041095,30]
[310905170,1704814272164,-500.0,0.00041095,30]
[310905171,1704814272173,-500.0,0.00041095,30]
[310905172,1704814272183,-500.0,0.00041095,30]
[310905173,1704814272193,-3567.97,0.00041095,30]
[310905174,1704814272202,-500.0,0.00041095,30]
[310905175,1704814272212,-25536.63,0.00041095,30]
[310905176,1704814272221,-2289.51,0.00041095,30]
[310905177,1704814272231,-500.0,0.00041095,30]
[310905178,1704814272240,-2301.6,0.00041095,30]
[310905179,1704814272251,-2584.46,0.00041095,30]
[310905180,1704814272260,-4952.19,0.00041095,30]
[310905181,1704814272269,-4092.41,0.00041095,30]
[310905182,1704814272279,-546.11,0.00041095,30]
[310905183,1704814272289,-6469.48,0.00041095,30]
[310905184,1704814272299,-1000.5,0.00041095,30]
[310905185,1704814272309,-541.30543706,0.00041095,30]
[310905186,1704814272318,-500.0,0.00041095,30]
[310905187,1704814272327,-1883.51,0.00041095,30]
[310905188,1704814272337,-500.0,0.00041095,30]
[310905189,1704814272346,-14086.33,0.00041095,30]
[310905190,1704814272356,-17610.03,0.00041095,30]
[310905191,1704814272365,-1520.43,0.00041095,30]
[310905192,1704814272375,-500.0,0.00041095,30]
[310905193,1704814272385,-2218.2,0.00041095,30]
[310905194,1704814272394,-500.0,0.00041095,30]
[310905195,1704814272404,-500.0,0.00041095,30]
[310905196,1704814272413,-500.0,0.00041095,30]
[310905197,1704814272630,-225.06147607,0.00041095,30]
[310905198,1704814272641,-3584.84,0.00041095,30]
[310905199,1704814272651,-12370.47,0.00041095,30]
[310905200,1704814272660,-82269.16,0.00041095,30]
[310905201,1704814272670,-587.12,0.00041095,30]
[310905202,1704814272679,-500.0,0.00041095,30]
[310905203,1704814272689,-500.0,0.00041095,30]
[310905204,1704814272698,-2651.08,0.00041095,30]
[310905205,1704814272707,-811.16,0.00041095,30]
[310905206,1704814272717,-500.0,0.00041095,30]
[310905207,1704814272727,-500.0,0.00041095,30]
[310905208,1704814272736,-500.0,0.00041095,30]
[310905209,1704814272746,-8660.7,0.00041095,30]
[310905210,1704814272755,-500.0,0.00041095,30]
[310905211,1704814272765,-7898.64,0.00041095,30]
[310905212,1704814272775,-500.0,0.00041095,30]
[310905213,1704814272785,-1178.68,0.00041095,30]
[310905214,1704814272794,-500.0,0.00041095,30]
[310905215,1704814272804,-6405.08,0.00041095,30]
[310905216,1704814272813,-6245.69,0.00041095,30]
[310905217,1704814272823,-500.0,0.00041095,30]
[310905218,1704814272832,-3770.14,0.00041095,30]
[310905219,1704814272841,-500.0,0.00041095,30]
[310905220,1704814272851,-1033.39,0.00041095,30]
[310905221,1704814272861,-1235.98,0.00041095,30]
[310905222,1704814272871,-2108.08,0.00041095,30]
[310905223,1704814272880,-500.0,0.00041095,30]
[310905224,1704814272889,-4003.81,0.00041095,30]
[310905225,1704814272899,-3248.4,0.00041095,30]
[310905226,1704814272909,-500.0,0.00041095,30]
[310905227,1704814272918,-500.0,0.00041095,30]
[310905228,1704814272928,-500.0,0.00041095,30]
[310905229,1704814272937,-500.0,0.00041095,30]
[310905230,1704814272946,-923.06,0.00041095,30]
[310905231,1704814272956,-1028.56,0.00041095,30]
[310905232,1704814272965,-500.0,0.00041095,30]
[310905233,1704814272975,-508.34461362,0.00041095,30]
[310905234,1704814272984,-818.97,0.00041095,30]
[310905235,1704814272994,-500.0,0.00041095,30]
[310905236,1704814273004,-3938.01,0.00041095,30]
[310905237,1704814273013,-500.0,0.00041095,30]
[310905238,1704814273022,-500.0,0.00041095,30]
[310905239,1704814273031,-500.0,0.00041095,30]
[310905240,1704814273041,-500.0,0.00041095,30]
[310905241,1704814273050,-936.13,0.00041095,30]
[310905242,1704814273060,-5593.35,0.00041095,30]
[310905243,1704814273069,-509.17828653,0.00041095,30]
[310905244,1704814273078,-500.0,0.00041095,30]
[310905245,1704814273087,-500.0,0.00041095,30]
[310905246,1704814273096,-245.88904246,0.00041095,30]
[310905247,1704814273106,-500.0,0.00041095,30]
[310905248,1704814273115,-500.0,0.00041095,30]
[310905249,1704814273125,-500.0,0.00041095,30]
[310905250,1704814273134,-500.0,0.00041095,30]
[310905251,1704814273144,-500.0,0.00041095,30]
[310905252,1704814273153,-500.0,0.00041095,30]
[310905253,1704814273162,-500.0,0.00041095,30]
[310905254,1704814273171,-500.0,0.00041095,30]
[310905255,1704814273181,-500.0,0.00041095,30]
[310905256,1704814273190,-500.0,0.00041095,30]
[310905257,1704814273200,-500.0,0.00041095,2]
[310905258,1704814273210,-852.7,0.00041095,30]
[310905259,1704814273219,-756.79,0.00041095,30]
[310905260,1704814273229,-500.0,0.00041095,30]
[310905261,1704814273239,-500.0,0.00041095,30]
[310905262,1704814273249,-500.0,0.00041095,30]
[310905263,1704814273259,-2774.75,0.00041095,30]
[310905264,1704814273269,-3304.06,0.00041095,30]
[310905265,1704814273278,-500.0,0.00041095,30]
[310905266,1704814273288,-2316.93,0.00041095,30]
[310905267,1704814273297,-2999.26,0.00041095,30]
[310905268,1704814273307,-3194.24,0.00041095,30]
[310905269,1704814273317,-1565.16,0.00041095,30]
[310905270,1704814273326,-2659.46,0.00041095,30]
[310905271,1704814273336,-1775.01,0.00041095,2]
[310905272,1704814273347,-500.0,0.00041095,30]
[310905273,1704814273357,-736.32,0.00041095,30]
[310905274,1704814273368,-300.0,0.00041096,10]
[310905275,1704814273379,-300.0,0.00041096,10]
[310905276,1704814273389,-300.0,0.00041096,10]
[310905277,1704814273399,-300.0,0.00041096,10]
[310905278,1704814273409,-300.0,0.00041096,10]
[310905279,1704814273427,-300.0,0.00041096,10]
[310905280,1704814273437,-300.0,0.00041096,10]
[310905281,1704814273447,-300.0,0.00041096,10]
[310905282,1704814273456,-300.0,0.00041096,10]
[310905283,1704814273466,-300.0,0.00041096,10]
[310905284,1704814273475,-300.0,0.00041096,10]
[310905285,1704814273485,-300.0,0.00041096,10]
[310905286,1704814273494,-300.0,0.00041096,10]
[310905287,1704814273504,-300.0,0.00041096,10]
[310905288,1704814273514,-300.0,0.00041096,10]
[310905289,1704814273524,-300.0,0.00041096,10]
[310905290,1704814273533,-300.0,0.00041096,10]
[310905291,1704814273543,-300.0,0.00041096,10]
[310905292,1704814273553,-300.0,0.00041096,10]
[310905293,1704814273563,-300.0,0.00041096,10]
[310905294,1704814273573,-302.1206474,0.00041096,10]
[310905295,1704814273583,-300.0,0.00041096,10]
[310905296,1704814273592,-300.0,0.00041096,10]
[310905297,1704814273602,-300.0,0.00041096,10]
[310905298,1704814273611,-300.0,0.00041096,10]
[310905299,1704814273621,-300.0,0.00041096,10]
[310905300,1704814273630,-300.0,0.00041096,10]
[310905301,1704814273640,-300.0,0.00041096,10]
[310905302,1704814273649,-300.0,0.00041096,10]
[310905303,1704814273659,-300.0,0.00041096,10]
[310905304,1704814273669,-300.0,0.00041096,10]
[310905305,1704814273679,-300.0,0.00041096,10]
[310905306,1704814273689,-300.0,0.00041096,10]
[310905307,1704814273698,-418.39754561,0.00041096,10]
[310905308,1704814273708,-500.0,0.00041096,4]
[310905309,1704814273717,-500.0,0.00041096,4]
[310905310,1704814273727,-500.0,0.00041096,4]
[310905311,1704814273736,-500.0,0.00041096,4]
[310905312,1704814273745,-500.0,0.00041096,4]
[310905313,1704814273754,-500.0,0.00041096,4]
[310905314,1704814273764,-500.0,0.00041096,4]
[310905315,1704814273773,-500.0,0.00041096,4]
[310905316,1704814273783,-500.0,0.00041096,4]
[310905317,1704814273799,-617.0,0.00041096,4]
[310905318,1704814273808,-500.0,0.00041096,4]
[310905319,1704814273818,-500.0,0.00041096,4]
[310905320,1704814273827,-152.74,0.00041096,2]
[310905321,1704814273837,-154.42,0.00041096,2]
[310905322,1704814273846,-500.0,0.00041096,4]
[310905323,1704814273855,-500.0,0.00041096,4]
[310905324,1704814273864,-500.0,0.00041096,4]
[310905325,1704814273875,-500.0,0.00041096,4]
[310905326,1704814273885,-180.0,0.00041096,2]
[310905327,1704814273895,-302.38,0.00041096,2]
[310905328,1704814273904,-666.66666,0.00041098,8]
[310905329,1704814273913,-158.07,0.000411,4]
[310905330,1704814273923,-158.07,0.000411,4]
[310905331,1704814273932,-200.0,0.000411,2]
[310905332,1704814273942,-500.0,0.000411,2]
[310905333,1704814273951,-1003.0,0.000411,2]
[310905334,1704814273960,-362.0,0.000411,2]
[310905335,1704814273969,-1200.0,0.000411,2]
[310905336,1704814273979,-538.0,0.000411,2]
[310905337,1704814273988,-2256.0,0.000411,2]
[310905338,1704814273998,-375.0,0.000411,2]
[310905339,1704814274007,-8750.0,0.00041125,2]
[310905340,1704814274016,-8750.0,0.00041125,2]
[310905341,1704814274026,-8750.0,0.00041125,2]
[310905342,1704814274035,-159.375356,0.00041175,2]
[310905343,1704814274054,-500.0,0.00041178,30]
[310905344,1704814274073,-500.0,0.00041178,2]
[310905345,1704814274092,-224.98896268,0.00041178,30]
[310905346,1704814274112,-500.0,0.00041178,30]
[310905347,1704814274128,-362.92223059,0.00041178,30]
[310905348,1704814274147,-500.0,0.00041178,30]
[310905349,1704814274167,-500.0,0.00041178,30]
[310905350,1704814274184,-500.0,0.00041178,30]
[310905351,1704814274203,-500.0,0.00041178,30]
[310905352,1704814274221,-299.13617222,0.00041178,30]
[310905353,1704814274243,-500.0,0.00041178,30]
[310905354,1704814274261,-360.78685134,0.00041178,30]
[310905355,1704814274274,-500.0,0.00041178,30]
[310905356,1704814274294,-504.33016307,0.00041178,30]
[310905357,1704814274311,-500.0,0.00041178,30]
[310905358,1704814274327,-500.0,0.00041178,30]
[310905359,1704814274343,-634.98891938,0.00041178,30]
[310905360,1704814274360,-498.27790936,0.00041178,30]
[310905361,1704814274375,-500.0,0.00041178,30]
[310905362,1704814274391,-500.0,0.00041178,30]
[310905363,1704814274408,-500.0,0.00041178,30]
[310905364,1704814274444,-1349.16,0.00041178,30]
[310905365,1704814274460,-500.0,0.00041178,30]
[310905366,1704814274475,-500.0,0.00041178,30]
[310905367,1704814274490,-500.0,0.00041178,30]
[310905368,1704814274506,-500.0,0.00041178,30]
[310905369,1704814274522,-500.0,0.00041178,30]
[310905370,1704814274537,-1655.21,0.00041178,30]
[310905371,1704814274554,-717.53,0.00041178,30]
[310905372,1704814274570,-500.0,0.00041178,30]
[310905373,1704814274585,-500.0,0.00041178,30]
[310905374,1704814274600,-500.0,0.00041178,30]
[310905375,1704814274615,-500.0,0.00041178,30]
[310905376,1704814274631,-684.27,0.00041178,30]
[310905377,1704814274647,-500.0,0.00041178,30]
[310905378,1704814274663,-500.0,0.00041178,30]
[310905379,1704814274680,-500.0,0.00041178,30]
[310905380,1704814274697,-500.0,0.00041178,30]
[310905381,1704814274713,-502.21940621,0.00041178,30]
[310905382,1704814274728,-500.0,0.00041178,30]
[310905383,1704814274744,-878.82,0.00041178,30]
[310905384,1704814274760,-500.0,0.00041178,30]
[310905385,1704814274775,-500.0,0.00041178,30]
[310905386,1704814274790,-500.0,0.00041178,30]
[310905387,1704814274805,-500.0,0.00041178,30]
[310905388,1704814274821,-500.0,0.00041178,30]
[310905389,1704814274836,-500.0,0.00041178,30]
[310905390,1704814274851,-500.0,0.00041178,30]
[310905391,1704814274875,-500.0,0.00041178,30]
[310905392,1704814274890,-548.43950404,0.00041178,30]
[310905393,1704814274907,-500.0,0.00041178,30]
[310905394,1704814274922,-500.0,0.00041178,30]
[310905395,1704814274939,-505.38,0.00041178,30]
[310905396,1704814274954,-1062.3,0.00041178,30]
[310905397,1704814274970,-500.0,0.00041178,30]
[310905398,1704814274986,-500.0,0.00041178,30]
[310905399,1704814275003,-500.0,0.00041178,30]
[310905400,1704814275021,-500.0,0.00041178,30]
[310905401,1704814275040,-500.0,0.00041178,30]
[310905402,1704814275058,-701.66,0.00041178,30]
[310905403,1704814275076,-1067.49,0.00041178,30]
[310905404,1704814275094,-500.0,0.00041178,30]
[310905405,1704814275115,-502.01075234,0.00041178,30]
[310905406,1704814275133,-565.87,0.00041178,30]
[310905407,1704814275152,-500.0,0.00041178,30]
[310905408,1704814275171,-500.0,0.00041178,30]
[310905409,1704814275189,-472.18747951,0.00041178,30]
[310905410,1704814275207,-500.0,0.00041178,30]
[310905411,1704814275225,-500.0,0.00041178,30]
[310905412,1704814275243,-707.34,0.00041178,30]
[310905413,1704814275260,-676.09,0.00041178,30]
[310905414,1704814275278,-500.0,0.00041178,30]
[310905415,1704814275302,-500.0,0.00041178,30]
[310905416,1704814275320,-2060.33,0.00041178,30]
[310905417,1704814275337,-1000.0,0.00041178,30]
[310905418,1704814275354,-581.02,0.00041178,30]
[310905419,1704814275371,-500.0,0.00041178,30]
[310905420,1704814275390,-1072.03,0.00041178,30]
[310905421,1704814275408,-712.95,0.00041178,30]
[310905422,1704814275455,-500.0,0.00041178,30]
[310905423,1704814275471,-500.0,0.00041178,30]
[310905424,1704814275488,-500.0,0.00041178,30]
[310905425,1704814275505,-500.0,0.00041178,30]
[310905426,1704814275521,-500.0,0.00041178,30]
[310905427,1704814275537,-500.0,0.00041178,30]
[310905428,1704814275556,-569.49,0.00041178,30]
[310905429,1704814275572,-500.0,0.00041178,30]
[310905430,1704814275589,-500.0,0.00041178,30]
[310905431,1704814275605,-442.40487315,0.00041178,30]